{"text_format":"1","workbook":"xlsx","n_sheets":1,"sheets":["РуссЯз_4кл"],"not_rendered":{"charts":1,"images":0,"macros":1,"external_links":0,"defined_names":1,"comments":0,"pivot_tables":0},"unopened":[],"bounds":{"document_bytes":16777216,"sheet_cells":100000,"rows_first":2000,"rows_last":500,"rows_between":2000,"halvings":0,"cell_chars":16384,"cell_head_chars":4096},"cells_cut":0,"cells_raw":0,"read":"whole","date_system":"1900"}

{"sheet":"РуссЯз_4кл","index":0,"n_rows":142,"n_cols":28,"rows_kept":142,"cut":false,"hidden":false,"merged":[[1,12,1,15],[127,22,127,24],[1,3,1,8],[2,3,2,8],[3,3,3,8],[1,10,1,11]]}
[null,null,null,null,null,null,null,null,null,null,null,null,null,null,null,null,null,null,null,null,"Ячейки, выделенные голубым, заполняются автоматически!!!"]
[null,"Предмет",null,"Русский язык",null,null,null,null,null,null,"Дата",null,"2018-02-02T15:22:41"]
[null,"Наименование ОУ",null,"Ленинская СОШ"]
[null,"Кол-во чел.",null,{"$f":"A132","v":0}]
[]
["№","Ф.И.О.","Вар.","1","2","3.1","3.2","4","5","6","7","8","9","10","11","12.1","12.2","13.1","13.2","14","15.1","15.2","Первичный балл","Тестовый балл/% выполнения ","Оценка","К1","К2"]
[null,"Баллы",null,7,3,1,3,2,1,2,3,2,1,1,2,1,2,1,2,1,2,1,{"$f":"SUM(D7:V7)","v":38},100,null,4,3]
[1,null,1,{"$f":"IF(Z8+AA8=0,\"\",Z8+AA8)","v":7},3,1,3,0,1,0,3,1,1,1,2,1,1,1,1,1,2,0,{"$f":"SUM(D8:V8)","v":30},{"$f":"ROUND(W8*100/43,0)","v":70},{"$f":"(IF(W8>=$Y$139,\"5\",IF(AND(W8>=$Y$140,W8<$Y$139),\"4\",IF(AND(W8>=$Y$141,W8<$Y$140),\"3\",IF(AND(W8>=1,W8<$Y$141),\"2\",\"-\")))))+0","v":4},4,3]
[2,null,1,{"$f":"IF(Z9+AA9=0,\"\",Z9+AA9)","v":5},3,1,3,2,1,0,0,2,1,1,2,1,1,1,1,1,1,0,{"$f":"SUM(D9:V9)","v":27},63,{"$f":"(IF(W9>=$Y$139,\"5\",IF(AND(W9>=$Y$140,W9<$Y$139),\"4\",IF(AND(W9>=$Y$141,W9<$Y$140),\"3\",IF(AND(W9>=1,W9<$Y$141),\"2\",\"-\")))))+0","v":4},2,3]
[3,null,1,4,3,1,3,2,1,0,3,1,1,1,2,1,2,1,1,1,2,0,{"$f":"SUM(D10:V10)","v":30},70,4,2,2]
[4,null,1,6,3,1,3,2,1,1,2,2,1,1,2,1,2,1,2,1,2,0,{"$f":"SUM(D11:U11)","v":34},79,5,3,3]
[5,null,1,7,3,1,3,2,1,0,3,2,1,0,2,1,2,1,1,1,1,0,{"$f":"SUM(D12:U12)","v":32},74,4,4,3]
[6,null,1,7,3,1,3,1,1,0,0,1,1,1,2,1,1,1,1,1,0,1,{"$f":"SUM(D13:V13)","v":27},63,4,4,3]
[7,null,1,7,3,1,3,2,1,0,1,2,1,1,2,0,2,1,2,1,0,1,31,72,4,4,3]
[8,null,2,7,3,1,3,2,1,1,3,0,1,0,1,1,2,1,0,1,0,1,29,67,4,4,3]
[9,null,2,5,3,1,3,2,0,0,0,0,1,1,0,0,1,0,0,0,0,1,18,42,3,2,3]
[10,null,2,7,3,1,3,2,1,1,3,0,1,1,1,1,2,0,1,1,0,0,29,67,4,4,3]
[11,null,2,4,3,1,3,2,1,1,0,1,1,1,0,0,2,1,1,1,0,1,24,56,4,2,2]
[12,null,2,3,0,1,2,1,0,0,0,null,1,1,1,0,1,0,1,0,null,null,12,28,2,0,3]
[13,null,2,1,3,1,3,2,1,0,0,0,0,0,0,0,0,0,0,0,0,0,11,26,2,0,1]
[14,null,2,4,3,1,2,2,1,0,1,2,0,1,1,0,2,0,2,0,0,0,22,51,3,2,2]
[15,null,null,"",null,null,null,null,null,null,null,null,null,null,null,null,null,null,null,null,null,null,0,0,{"$error":"#VALUE!"}]
[16,null,null,"",null,null,null,null,null,null,null,null,null,null,null,null,null,null,null,null,null,null,0,0,{"$error":"#VALUE!"}]
[17,null,null,"",null,null,null,null,null,null,null,null,null,null,null,null,null,null,null,null,null,null,0,0,{"$error":"#VALUE!"}]
[18,null,null,"",null,null,null,null,null,null,null,null,null,null,null,null,null,null,null,null,null,null,0,0,{"$error":"#VALUE!"}]
[19,null,null,"",null,null,null,null,null,null,null,null,null,null,null,null,null,null,null,null,null,null,0,0,{"$error":"#VALUE!"}]
[20,null,null,"",null,null,null,null,null,null,null,null,null,null,null,null,null,null,null,null,null,null,0,0,{"$error":"#VALUE!"}]
[21,null,null,"",null,null,null,null,null,null,null,null,null,null,null,null,null,null,null,null,null,null,0,0,{"$error":"#VALUE!"}]
[22,null,null,"",null,null,null,null,null,null,null,null,null,null,null,null,null,null,null,null,null,null,0,0,{"$error":"#VALUE!"}]
[23,null,null,"",null,null,null,null,null,null,null,null,null,null,null,null,null,null,null,null,null,null,0,0,{"$error":"#VALUE!"}]
[24,null,null,"",null,null,null,null,null,null,null,null,null,null,null,null,null,null,null,null,null,null,0,0,{"$error":"#VALUE!"}]
[25,null,null,"",null,null,null,null,null,null,null,null,null,null,null,null,null,null,null,null,null,null,0,0,{"$error":"#VALUE!"}]
[26,null,null,"",null,null,null,null,null,null,null,null,null,null,null,null,null,null,null,null,null,null,0,0,{"$error":"#VALUE!"}]
[27,null,null,"",null,null,null,null,null,null,null,null,null,null,null,null,null,null,null,null,null,null,0,0,{"$error":"#VALUE!"}]
[28,null,null,"",null,null,null,null,null,null,null,null,null,null,null,null,null,null,null,null,null,null,0,0,{"$error":"#VALUE!"}]
[29,null,null,"",null,null,null,null,null,null,null,null,null,null,null,null,null,null,null,null,null,null,0,0,{"$error":"#VALUE!"}]
[30,null,null,"",null,null,null,null,null,null,null,null,null,null,null,null,null,null,null,null,null,null,0,0,{"$error":"#VALUE!"}]
[31,null,null,"",null,null,null,null,null,null,null,null,null,null,null,null,null,null,null,null,null,null,0,0,{"$error":"#VALUE!"}]
[32,null,null,"",null,null,null,null,null,null,null,null,null,null,null,null,null,null,null,null,null,null,0,0,{"$error":"#VALUE!"}]
[33,null,null,"",null,null,null,null,null,null,null,null,null,null,null,null,null,null,null,null,null,null,0,0,{"$error":"#VALUE!"}]
[34,null,null,"",null,null,null,null,null,null,null,null,null,null,null,null,null,null,null,null,null,null,0,0,{"$error":"#VALUE!"}]
[35,null,null,"",null,null,null,null,null,null,null,null,null,null,null,null,null,null,null,null,null,null,0,0,{"$error":"#VALUE!"}]
[36,null,null,"",null,null,null,null,null,null,null,null,null,null,null,null,null,null,null,null,null,null,0,0,{"$error":"#VALUE!"}]
[37,null,null,"",null,null,null,null,null,null,null,null,null,null,null,null,null,null,null,null,null,null,0,0,{"$error":"#VALUE!"}]
[38,null,null,"",null,null,null,null,null,null,null,null,null,null,null,null,null,null,null,null,null,null,{"$f":"SUM(D45:V45)","v":0},0,{"$error":"#VALUE!"}]
[39,null,null,"",null,null,null,null,null,null,null,null,null,null,null,null,null,null,null,null,null,null,0,0,{"$error":"#VALUE!"}]
[40,null,null,"",null,null,null,null,null,null,null,null,null,null,null,null,null,null,null,null,null,null,0,0,{"$error":"#VALUE!"}]
[41,null,null,"",null,null,null,null,null,null,null,null,null,null,null,null,null,null,null,null,null,null,0,0,{"$error":"#VALUE!"}]
[42,null,null,"",null,null,null,null,null,null,null,null,null,null,null,null,null,null,null,null,null,null,0,0,{"$error":"#VALUE!"}]
[43,null,null,"",null,null,null,null,null,null,null,null,null,null,null,null,null,null,null,null,null,null,0,0,{"$error":"#VALUE!"}]
[44,null,null,"",null,null,null,null,null,null,null,null,null,null,null,null,null,null,null,null,null,null,0,0,{"$error":"#VALUE!"}]
[45,null,null,"",null,null,null,null,null,null,null,null,null,null,null,null,null,null,null,null,null,null,0,0,{"$error":"#VALUE!"}]
[46,null,null,"",null,null,null,null,null,null,null,null,null,null,null,null,null,null,null,null,null,null,0,0,{"$error":"#VALUE!"}]
[47,null,null,"",null,null,null,null,null,null,null,null,null,null,null,null,null,null,null,null,null,null,0,0,{"$error":"#VALUE!"}]
[48,null,null,"",null,null,null,null,null,null,null,null,null,null,null,null,null,null,null,null,null,null,0,0,{"$error":"#VALUE!"}]
[49,null,null,"",null,null,null,null,null,null,null,null,null,null,null,null,null,null,null,null,null,null,0,0,{"$error":"#VALUE!"}]
[50,null,null,"",null,null,null,null,null,null,null,null,null,null,null,null,null,null,null,null,null,null,0,0,{"$error":"#VALUE!"}]
[51,null,null,"",null,null,null,null,null,null,null,null,null,null,null,null,null,null,null,null,null,null,0,0,{"$error":"#VALUE!"}]
[52,null,null,"",null,null,null,null,null,null,null,null,null,null,null,null,null,null,null,null,null,null,0,0,{"$error":"#VALUE!"}]
[53,null,null,"",null,null,null,null,null,null,null,null,null,null,null,null,null,null,null,null,null,null,0,0,{"$error":"#VALUE!"}]
[54,null,null,"",null,null,null,null,null,null,null,null,null,null,null,null,null,null,null,null,null,null,0,0,{"$error":"#VALUE!"}]
[55,null,null,"",null,null,null,null,null,null,null,null,null,null,null,null,null,null,null,null,null,null,0,0,{"$error":"#VALUE!"}]
[56,null,null,"",null,null,null,null,null,null,null,null,null,null,null,null,null,null,null,null,null,null,0,0,{"$error":"#VALUE!"}]
[57,null,null,"",null,null,null,null,null,null,null,null,null,null,null,null,null,null,null,null,null,null,0,0,{"$error":"#VALUE!"}]
[58,null,null,"",null,null,null,null,null,null,null,null,null,null,null,null,null,null,null,null,null,null,0,0,{"$error":"#VALUE!"}]
[59,null,null,"",null,null,null,null,null,null,null,null,null,null,null,null,null,null,null,null,null,null,0,0,{"$error":"#VALUE!"}]
[60,null,null,"",null,null,null,null,null,null,null,null,null,null,null,null,null,null,null,null,null,null,0,0,{"$error":"#VALUE!"}]
[61,null,null,"",null,null,null,null,null,null,null,null,null,null,null,null,null,null,null,null,null,null,0,0,{"$error":"#VALUE!"}]
[62,null,null,"",null,null,null,null,null,null,null,null,null,null,null,null,null,null,null,null,null,null,0,0,{"$error":"#VALUE!"}]
[63,null,null,"",null,null,null,null,null,null,null,null,null,null,null,null,null,null,null,null,null,null,0,0,{"$error":"#VALUE!"}]
[64,null,null,"",null,null,null,null,null,null,null,null,null,null,null,null,null,null,null,null,null,null,0,0,{"$error":"#VALUE!"}]
[65,null,null,"",null,null,null,null,null,null,null,null,null,null,null,null,null,null,null,null,null,null,0,0,{"$error":"#VALUE!"}]
[66,null,null,{"$f":"IF(Z73+AA73=0,\"\",Z73+AA73)","v":""},null,null,null,null,null,null,null,null,null,null,null,null,null,null,null,null,null,null,0,{"$f":"ROUND(W73*100/43,0)","v":0},{"$f":"(IF(W73>=$Y$139,\"5\",IF(AND(W73>=$Y$140,W73<$Y$139),\"4\",IF(AND(W73>=$Y$141,W73<$Y$140),\"3\",IF(AND(W73>=1,W73<$Y$141),\"2\",\"-\")))))+0","v":{"$error":"#VALUE!"}}]
[67,null,null,"",null,null,null,null,null,null,null,null,null,null,null,null,null,null,null,null,null,null,0,0,{"$error":"#VALUE!"}]
[68,null,null,"",null,null,null,null,null,null,null,null,null,null,null,null,null,null,null,null,null,null,0,0,{"$error":"#VALUE!"}]
[69,null,null,"",null,null,null,null,null,null,null,null,null,null,null,null,null,null,null,null,null,null,0,0,{"$error":"#VALUE!"}]
[70,null,null,"",null,null,null,null,null,null,null,null,null,null,null,null,null,null,null,null,null,null,{"$f":"SUM(D77:V77)","v":0},0,{"$error":"#VALUE!"}]
[71,null,null,"",null,null,null,null,null,null,null,null,null,null,null,null,null,null,null,null,null,null,0,0,{"$error":"#VALUE!"}]
[72,null,null,"",null,null,null,null,null,null,null,null,null,null,null,null,null,null,null,null,null,null,0,0,{"$error":"#VALUE!"}]
[73,null,null,"",null,null,null,null,null,null,null,null,null,null,null,null,null,null,null,null,null,null,0,0,{"$error":"#VALUE!"}]
[74,null,null,"",null,null,null,null,null,null,null,null,null,null,null,null,null,null,null,null,null,null,0,0,{"$error":"#VALUE!"}]
[75,null,null,"",null,null,null,null,null,null,null,null,null,null,null,null,null,null,null,null,null,null,0,0,{"$error":"#VALUE!"}]
[76,null,null,"",null,null,null,null,null,null,null,null,null,null,null,null,null,null,null,null,null,null,0,0,{"$error":"#VALUE!"}]
[77,null,null,"",null,null,null,null,null,null,null,null,null,null,null,null,null,null,null,null,null,null,0,0,{"$error":"#VALUE!"}]
[78,null,null,"",null,null,null,null,null,null,null,null,null,null,null,null,null,null,null,null,null,null,0,0,{"$error":"#VALUE!"}]
[79,null,null,"",null,null,null,null,null,null,null,null,null,null,null,null,null,null,null,null,null,null,0,0,{"$error":"#VALUE!"}]
[80,null,null,"",null,null,null,null,null,null,null,null,null,null,null,null,null,null,null,null,null,null,0,0,{"$error":"#VALUE!"}]
[81,null,null,"",null,null,null,null,null,null,null,null,null,null,null,null,null,null,null,null,null,null,0,0,{"$error":"#VALUE!"}]
[82,null,null,"",null,null,null,null,null,null,null,null,null,null,null,null,null,null,null,null,null,null,0,0,{"$error":"#VALUE!"}]
[83,null,null,"",null,null,null,null,null,null,null,null,null,null,null,null,null,null,null,null,null,null,0,0,{"$error":"#VALUE!"}]
[84,null,null,"",null,null,null,null,null,null,null,null,null,null,null,null,null,null,null,null,null,null,0,0,{"$error":"#VALUE!"}]
[85,null,null,"",null,null,null,null,null,null,null,null,null,null,null,null,null,null,null,null,null,null,0,0,{"$error":"#VALUE!"}]
[86,null,null,"",null,null,null,null,null,null,null,null,null,null,null,null,null,null,null,null,null,null,0,0,{"$error":"#VALUE!"}]
[87,null,null,"",null,null,null,null,null,null,null,null,null,null,null,null,null,null,null,null,null,null,0,0,{"$error":"#VALUE!"}]
[88,null,null,"",null,null,null,null,null,null,null,null,null,null,null,null,null,null,null,null,null,null,0,0,{"$error":"#VALUE!"}]
[89,null,null,"",null,null,null,null,null,null,null,null,null,null,null,null,null,null,null,null,null,null,0,0,{"$error":"#VALUE!"}]
[90,null,null,"",null,null,null,null,null,null,null,null,null,null,null,null,null,null,null,null,null,null,0,0,{"$error":"#VALUE!"}]
[91,null,null,"",null,null,null,null,null,null,null,null,null,null,null,null,null,null,null,null,null,null,0,0,{"$error":"#VALUE!"}]
[92,null,null,"",null,null,null,null,null,null,null,null,null,null,null,null,null,null,null,null,null,null,0,0,{"$error":"#VALUE!"}]
[93,null,null,"",null,null,null,null,null,null,null,null,null,null,null,null,null,null,null,null,null,null,0,0,{"$error":"#VALUE!"}]
[94,null,null,"",null,null,null,null,null,null,null,null,null,null,null,null,null,null,null,null,null,null,0,0,{"$error":"#VALUE!"}]
[95,null,null,"",null,null,null,null,null,null,null,null,null,null,null,null,null,null,null,null,null,null,0,0,{"$error":"#VALUE!"}]
[96,null,null,"",null,null,null,null,null,null,null,null,null,null,null,null,null,null,null,null,null,null,0,0,{"$error":"#VALUE!"}]
[97,null,null,"",null,null,null,null,null,null,null,null,null,null,null,null,null,null,null,null,null,null,0,0,{"$error":"#VALUE!"}]
[98,null,null,"",null,null,null,null,null,null,null,null,null,null,null,null,null,null,null,null,null,null,0,0,{"$error":"#VALUE!"}]
[99,null,null,"",null,null,null,null,null,null,null,null,null,null,null,null,null,null,null,null,null,null,0,0,{"$error":"#VALUE!"}]
[100,null,null,"",null,null,null,null,null,null,null,null,null,null,null,null,null,null,null,null,null,null,0,0,{"$error":"#VALUE!"}]
[101,null,null,"",null,null,null,null,null,null,null,null,null,null,null,null,null,null,null,null,null,null,0,0,{"$error":"#VALUE!"}]
[102,null,null,"",null,null,null,null,null,null,null,null,null,null,null,null,null,null,null,null,null,null,{"$f":"SUM(D109:V109)","v":0},0,{"$error":"#VALUE!"}]
[103,null,null,"",null,null,null,null,null,null,null,null,null,null,null,null,null,null,null,null,null,null,0,0,{"$error":"#VALUE!"}]
[104,null,null,"",null,null,null,null,null,null,null,null,null,null,null,null,null,null,null,null,null,null,0,0,{"$error":"#VALUE!"}]
[105,null,null,"",null,null,null,null,null,null,null,null,null,null,null,null,null,null,null,null,null,null,0,0,{"$error":"#VALUE!"}]
[106,null,null,"",null,null,null,null,null,null,null,null,null,null,null,null,null,null,null,null,null,null,0,0,{"$error":"#VALUE!"}]
[107,null,null,"",null,null,null,null,null,null,null,null,null,null,null,null,null,null,null,null,null,null,0,0,{"$error":"#VALUE!"}]
[108,null,null,"",null,null,null,null,null,null,null,null,null,null,null,null,null,null,null,null,null,null,0,0,{"$error":"#VALUE!"}]
[109,null,null,"",null,null,null,null,null,null,null,null,null,null,null,null,null,null,null,null,null,null,0,0,{"$error":"#VALUE!"}]
[110,null,null,"",null,null,null,null,null,null,null,null,null,null,null,null,null,null,null,null,null,null,0,0,{"$error":"#VALUE!"}]
[111,null,null,"",null,null,null,null,null,null,null,null,null,null,null,null,null,null,null,null,null,null,0,0,{"$error":"#VALUE!"}]
[112,null,null,"",null,null,null,null,null,null,null,null,null,null,null,null,null,null,null,null,null,null,0,0,{"$error":"#VALUE!"}]
[113,null,null,"",null,null,null,null,null,null,null,null,null,null,null,null,null,null,null,null,null,null,0,0,{"$error":"#VALUE!"}]
[114,null,null,"",null,null,null,null,null,null,null,null,null,null,null,null,null,null,null,null,null,null,0,0,{"$error":"#VALUE!"}]
[115,null,null,"",null,null,null,null,null,null,null,null,null,null,null,null,null,null,null,null,null,null,0,0,{"$error":"#VALUE!"}]
[116,null,null,"",null,null,null,null,null,null,null,null,null,null,null,null,null,null,null,null,null,null,0,0,{"$error":"#VALUE!"}]
[117,null,null,"",null,null,null,null,null,null,null,null,null,null,null,null,null,null,null,null,null,null,0,0,{"$error":"#VALUE!"}]
[118,null,null,"",null,null,null,null,null,null,null,null,null,null,null,null,null,null,null,null,null,null,0,0,{"$error":"#VALUE!"}]
[119,null,null,"",null,null,null,null,null,null,null,null,null,null,null,null,null,null,null,null,null,null,0,0,{"$error":"#VALUE!"}]
[120,null,null,"",null,null,null,null,null,null,null,null,null,null,null,null,null,null,null,null,null,null,0,0,{"$error":"#VALUE!"}]
[null,null,null,null,null,null,null,null,null,null,null,null,null,null,null,null,null,null,null,null,null,null,"Среднее значение"]
[null,"Решили верно",null,{"$f":"COUNTIF(D8:D127,D7)","v":6},{"$f":"COUNTIF(E8:E127,E7)","v":13},14,12,11,12,0,5,5,12,11,7,8,8,9,3,10,3,5,{"$f":"SUM(W8:W127)/A132","v":{"$error":"#DIV/0!"}},{"$f":"SUM(X8:X127)/A132","v":{"$error":"#DIV/0!"}},{"$f":"(Z131*5+Z132*4+Z133*3+Z134*2)/A132","v":{"$error":"#DIV/0!"}}]
[null,"Процент выполнения",null,{"$f":"AVERAGE(D8:D127)/D7","v":0.75510204081632648},{"$f":"AVERAGE(E8:E127)/E7","v":0.92857142857142849},1,0.95238095238095244,0.8571428571428571,0.8571428571428571,0.14285714285714285,0.45238095238095238,0.53846153846153844,0.8571428571428571,0.7857142857142857,0.6428571428571429,0.5714285714285714,0.75,0.6428571428571429,0.5,0.7142857142857143,0.30769230769230771,0.38461538461538464,null,null,"Оценки","чел.","%"]
[null,"Приступили к решению",null,{"$f":"COUNT(D8:D127)","v":14},{"$f":"COUNT(E8:E127)","v":14},{"$f":"COUNT(F8:F127)","v":14},{"$f":"COUNT(G8:G127)","v":14},14,14,14,14,13,14,14,14,14,14,14,14,14,{"$f":"COUNT(U8:U127)","v":13},{"$f":"COUNT(V8:V127)","v":13},null,null,"\"5\" -",{"$f":"COUNTIF(Y8:Y127,5)","v":1},{"$f":"Z131/$A$132","v":{"$error":"#DIV/0!"}}]
[{"$f":"COUNTA(B8:B127)","v":0},"Не приступили к решению",null,{"$f":"$A$132-D131","v":-14},{"$f":"$A$132-E131","v":-14},{"$f":"$A$132-F131","v":-14},-14,-14,-14,-14,-14,-13,-14,-14,-14,-14,-14,-14,-14,-14,-13,-13,null,null,"\"4\" -",{"$f":"COUNTIF(Y8:Y127,4)","v":9},{"$f":"Z132/$A$132","v":{"$error":"#DIV/0!"}}]
[null,null,null,null,null,null,null,null,null,null,null,null,null,null,null,null,null,null,null,null,null,null,null,null,"\"3\" -",{"$f":"COUNTIF(Y8:Y127,3)","v":2},{"$f":"Z133/$A$132","v":{"$error":"#DIV/0!"}}]
[null,null,null,null,null,null,null,null,null,null,null,null,null,null,null,null,null,null,null,null,null,null,null,null,"\"2\" -",{"$f":"COUNTIF(Y8:Y127,2)","v":2},{"$f":"Z134/$A$132","v":{"$error":"#DIV/0!"}}]
[]
[]
[]
[null,null,null,null,null,null,null,null,null,null,null,null,null,null,null,null,null,null,null,null,null,null,null,null,"Перевод баллов в оценку"]
[null,null,null,null,null,null,null,null,null,null,null,null,null,null,null,null,null,null,null,null,null,null,null,null,33,"-",38,"5 баллов"]
[null,null,null,null,null,null,null,null,null,null,null,null,null,null,null,null,null,null,null,null,null,null,null,null,24,"-",32,"4 балла"]
[null,null,null,null,null,null,null,null,null,null,null,null,null,null,null,null,null,null,null,null,null,null,null,null,14,"-",23,"3 балла"]
[null,null,null,null,null,null,null,null,null,null,null,null,null,null,null,null,null,null,null,null,null,null,null,null,0,"-",13,"2 балла"]